Workbook

Sheet Swindle - Winter 2025
B3: SATURDAY SWINDLE - WINTER 2025
D5: Total | E5: Ave | G5: Swindle | K5: Latest Result - 18 October 2025
C6: Rounds | D6: S'ford | E6: S'ford | F6: Wins | G6: Pts | L6: Stableford | M6: Swindle
A7: =A6+1 -> 1 | B7: Colin Price | C7: 3 | D7: =37+35+32 -> 104 | E7: =IF(C7=0,0,D7/C7) -> 34.66666667 | G7: =20+16+8 -> 44 | L7: Points | M7: Points
A8: 2 | B8: Simon Lloyd | C8: 3 | D8: =30+33+36 -> 99 | E8: =IF(C8=0,0,D8/C8) -> 33 | G8: =13+13+18 -> 44 | J8: 1 | K8: John Copas | L8: 36 | M8: 21
A9: 3 | B9: John Copas | C9: 3 | D9: =27+35+36 -> 98 | E9: =IF(C9=0,0,D9/C9) -> 32.66666667 | F9: 1 | G9: =5+15+21 -> 41 | J9: =J8+1 -> 2 | K9: Simon Lloyd | L9: 36 | M9: 18
A10: 4 | B10: Roger Keen | C10: 3 | D10: =29+33+35 -> 97 | E10: =IF(C10=0,0,D10/C10) -> 32.33333333 | G10: =9+11+15 -> 35 | J10: =J9+1 -> 3 | K10: Scott Browning | L10: 35 | M10: 16
A11: 5 | B11: Iain Maxwell | C11: 2 | D11: =38+32 -> 70 | E11: =IF(C11=0,0,D11/C11) -> 35 | F11: 1 | G11: =25+9 -> 34 | J11: 4 | K11: Roger Keen | L11: 35 | M11: 15
A12: 6 | B12: Les Bygrave | C12: 3 | D12: =30+32+35 -> 97 | E12: =IF(C12=0,0,D12/C12) -> 32.33333333 | G12: =11+9+14 -> 34 | J12: 5 | K12: Les Bygrave | L12: 35 | M12: 14
A13: 7 | B13: Brad Carpenter | C13: 3 | D13: =30+36+24 -> 90 | E13: =IF(C13=0,0,D13/C13) -> 30 | G13: =12+19+2 -> 33 | J13: 6 | K13: Kevin Poore | L13: 35 | M13: 13
A14: 8 | B14: Tim Lloyd | C14: 3 | D14: =31+29+34 -> 94 | E14: =IF(C14=0,0,D14/C14) -> 31.33333333 | G14: =14+5+11 -> 30 | J14: 7 | K14: Colin Reardon | L14: 34 | M14: 12
A15: 9 | B15: Phil Hames | C15: 2 | D15: =34+33 -> 67 | E15: =IF(C15=0,0,D15/C15) -> 33.5 | G15: =17+10 -> 27 | J15: 8 | K15: Tim Lloyd | L15: 34 | M15: 11
A16: 10 | B16: Colin Reardon | C16: 3 | D16: =30+29+34 -> 93 | E16: =IF(C16=0,0,D16/C16) -> 31 | G16: =10+4+12 -> 26 | J16: 9 | K16: Phil Hames | L16: 33 | M16: 10
A17: 11 | B17: John Machin | C17: 2 | D17: =37+28 -> 65 | E17: =IF(C17=0,0,D17/C17) -> 32.5 | G17: =22+3 -> 25 | J17: 10 | K17: Iain Maxwell | L17: 32 | M17: 9
A18: 12 | B18: Bryn Owen | C18: 2 | D18: =25+37 -> 62 | E18: =IF(C18=0,0,D18/C18) -> 31 | F18: 1 | G18: =1+22 -> 23 | J18: 11 | K18: Colin Price | L18: 32 | M18: 8
A19: 13 | B19: Brad Bygrave | C19: 2 | D19: =33+30 -> 63 | E19: =IF(C19=0,0,D19/C19) -> 31.5 | G19: =16+6 -> 22 | J19: 12 | K19: Terry Poingdestre | L19: 32 | M19: 7
A20: 14 | B20: Simon Cook | C20: 2 | D20: =27+36 -> 63 | E20: =IF(C20=0,0,D20/C20) -> 31.5 | G20: =4+17 -> 21 | J20: 13 | K20: Brad Bygrave | L20: 30 | M20: 6
A21: 15 | B21: Paul Reardon | C21: 1 | D21: 35 | E21: =IF(C21=0,0,D21/C21) -> 35 | G21: 19 | J21: 14 | K21: Dennis Cantwell | L21: 29 | M21: 5
A22: 16 | B22: Terry Poingdestre | C22: 2 | D22: =33+32 -> 65 | E22: =IF(C22=0,0,D22/C22) -> 32.5 | G22: =12+7 -> 19 | J22: 15 | K22: Andy Vittery | L22: 29 | M22: 4
A23: 17 | B23: Martyn Crichton | C23: 1 | D23: 35 | E23: =IF(C23=0,0,D23/C23) -> 35 | G23: 18 | J23: 16 | K23: Trevor Vincent | L23: 27 | M23: 3
A24: 18 | B24: John Fitzgerald | C24: 2 | D24: =27+34 -> 61 | E24: =IF(C24=0,0,D24/C24) -> 30.5 | G24: =3+14 -> 17 | J24: 17 | K24: Brad Carpenter | L24: 24 | M24: 2
A25: 19 | B25: Andy Vittery | C25: 3 | D25: =28+30+29 -> 87 | E25: =IF(C25=0,0,D25/C25) -> 29 | G25: =7+6+4 -> 17 | J25: 18 | K25: Andy Nash | L25: 24 | M25: 1
A26: 20 | B26: Scott Browning | C26: 1 | D26: =35 -> 35 | E26: =IF(C26=0,0,D26/C26) -> 35 | G26: =16 -> 16
A27: 21 | B27: Phil Nathan | C27: 1 | D27: 31 | E27: =IF(C27=0,0,D27/C27) -> 31 | G27: 15
A28: 22 | B28: Nick Hayward | C28: 2 | D28: =29+30 -> 59 | E28: =IF(C28=0,0,D28/C28) -> 29.5 | G28: =8+7 -> 15
A29: 23 | B29: Adam Witherington | C29: 2 | D29: =28+31 -> 59 | E29: =IF(C29=0,0,D29/C29) -> 29.5 | G29: =6+8 -> 14
A30: 24 | B30: Kevin Poore | C30: 1 | D30: =35 -> 35 | E30: =IF(C30=0,0,D30/C30) -> 35 | G30: =13 -> 13
A31: 25 | B31: Simon Hill | C31: 1 | D31: =33 -> 33 | E31: =IF(C31=0,0,D31/C31) -> 33 | G31: =10 -> 10
A32: 26 | B32: Dennis Cantwell | C32: 3 | D32: =25+27+29 -> 81 | E32: =IF(C32=0,0,D32/C32) -> 27 | G32: =2+2+5 -> 9
A33: 27 | B33: Trevor Vincent | C33: 1 | D33: =27 -> 27 | E33: =IF(C33=0,0,D33/C33) -> 27 | G33: =3 -> 3
A34: 28 | B34: Andy Nash | C34: 1 | D34: =24 -> 24 | E34: =IF(C34=0,0,D34/C34) -> 24 | G34: =1 -> 1
A35: 29 | B35: Martin Thomas | C35: 1 | D35: =24 -> 24 | E35: =IF(C35=0,0,D35/C35) -> 24 | G35: =1 -> 1
E37: =CONCATENATE("Scores after round on ",MID(K5,17,17)) -> Scores after round on 18 October 2025
E38: Rounds: | F38: =SUM(F6:F35) -> 3
